Workbook

Sheet Tabelas ago-19 a março-22
A1: TABELA SALARIAL TCDF - VIGÊNCIA: AGOSTO/2018
A2: CARGOS: | D2: AUDITOR DE CONTROLE EXTERNO (ACE)
D3: ANALISTA DE ADMINISTRAÇÃO PÚBLICA (ANAP)
A4: Aplicação: | D4: AGOSTO/2018 | G4: Lei nº 5.662/2016 | H4: DODF Nº 126 de 04.07.16
A5: Reajuste: | D5: 5% (cinco por cento) | G5: Vigência: | I5: 01.08.2018
A6: Padrão anterior Lei 4356/09 | B6: Classe | C6: Padrão | D6: * Interstício entre o Padrão Inicial% | E6: *Interstício | F6: Vencimento | G6: ***GACE 3% | H6: Remuneração
B7: A | C7: 46 | D7: 1 | E7: 100 | F7: 18386.63274 | G7: 551.5989822 | H7: 18938.23172
C8: 47 | D8: 1.02500011 | E8: 1.025 | F8: 18846.30059 | G8: 565.3890177 | H8: 19411.68961
A9: 3SI / S3I | C9: 48 | D9: 1.050624591 | E9: 1.025 | F9: 19317.4485 | G9: 579.523455 | H9: 19896.97196
A10: 3SII / S3II | C10: 49 | D10: 1.092650856 | E10: 1.04 | F10: 20090.17 | G10: 602.7051 | H10: 20692.8751
A11: 3SIII / S3III | C11: 50 | D11: 1.119966411 | E11: 1.025 | F11: 20592.41109 | G11: 617.7723326 | H11: 21210.18342
A12: 3SIV / S3IV | C12: 51 | D12: 1.147965824 | E12: 1.025 | F12: 21107.226 | G12: 633.21678 | H12: 21740.44278
A13: 3SV / S3V | B13: B | C13: 52 | D13: 1.176665369 | E13: 1.025 | F13: 21634.914 | G13: 649.04742 | H13: 22283.96142
A14: 2SI / S2I | C14: 53 | D14: 1.206081604 | E14: 1.025 | F14: 22175.7795 | G14: 665.273385 | H14: 22841.05289
A15: 2SII / S2II | C15: 54 | D15: 1.236233869 | E15: 1.025 | F15: 22730.17814 | G15: 681.9053441 | H15: 23412.08348
A16: 2SIII / S2III | C16: 55 | D16: 1.267139575 | E16: 1.025 | F16: 23298.43 | G16: 698.9529 | H16: 23997.3829
A17: 2SIV / S2IV | C17: 56 | D17: 1.298819151 | E17: 1.025 | F17: 23880.91073 | G17: 716.4273218 | H17: 24597.33805
A18: 1SI / S1I | C18: 57 | D18: 1.331288382 | E18: 1.025 | F18: 24477.91056 | G18: 734.3373167 | H18: 25212.24787
A19: 1SII / S1II | B19: ESP. | C19: 58 | D19: 1.38454058 | E19: 1.04 | F19: 25457.03917 | G19: 763.711175 | H19: 26220.75034
A20: 1SIII / S1III | C20: 59 | D20: 1.419152941 | E20: 1.025 | F20: 26093.44392 | G20: 782.8033176 | H20: 26876.24724
A21: 1SIV / S1IV | C21: 60 | D21: 1.454632376 | E21: 1.025 | F21: 26745.79127 | G21: 802.3737382 | H21: 27548.16501
A22: ESI / SEI | C22: 61 | D22: 1.490998204 | E22: 1.025 | F22: 27414.43639 | G22: 822.4330916 | H22: 28236.86948
A23: ESII / SEII | C23: 62 | D23: 1.528272218 | E23: 1.025 | F23: 28099.78 | G23: 842.9934 | H23: 28942.7734
A24: ESIII / SEIII | C24: 63 | D24: 1.566479502 | E24: 1.025 | F24: 28802.2833 | G24: 864.068499 | H24: 29666.3518
A26: =A1 -> TABELA SALARIAL TCDF - VIGÊNCIA: AGOSTO/2018
A27: CARGOS: | D27: TÉCNICO DE CONTROLE EXTERNO (TCE)
D28: TÉCNICO DE ADMINISTRAÇÃO PÚBLICA (TAP)
A29: Aplicação: | D29: =D4 -> AGOSTO/2018 | G29: =G4 -> Lei nº 5.662/2016 | H29: =H4 -> DODF Nº 126 de 04.07.16
A30: Reajuste: | D30: =D5 -> 5% (cinco por cento) | G30: Vigência: | I30: =I5 -> 01.08.2018
A31: Padrão anterior Lei 4356/09 | B31: Classe | C31: Padrão | D31: * Interstício entre o Padrão Inicial% | E31: *Interstício | F31: Vencimento | G31: ***GACE 3% | H31: Remuneração
B32: A | C32: 27 | D32: 1 | E32: 100 | F32: 11010.87 | G32: =F32*0.03 -> 330.3261 | H32: =F32+G32 -> 11341.1961
C33: 28 | D33: =F33/F32 -> 1.039996203 | E33: 1.04 | F33: 11451.26299 | G33: =F33*0.03 -> 343.5378897 | H33: =F33+G33 -> 11794.80088
A34: M3I / 3MIA | C34: 29 | D34: =F34/F32 -> 1.065994785 | E34: 1.025 | F34: 11737.53 | G34: 352.1259 | H34: 12089.6559
A35: M3II / 3MIIA | C35: 30 | D35: =F35/F32 -> 1.092646407 | E35: 1.025 | F35: 12030.98755 | G35: 360.9296264 | H35: 12391.91717
A36: M3III / 3MIIIA | C36: 31 | D36: =F36/F32 -> 1.119963382 | E36: 1.025 | F36: 12331.7712 | G36: 369.953136 | H36: 12701.72434
A37: M3IV / 3MIVA | C37: 32 | D37: =F37/F32 -> 1.14796106 | E37: 1.025 | F37: 12640.05 | G37: 379.2015 | H37: 13019.2515
A38: M3V / 3MVA | B38: B | C38: 33 | D38: =F38/F32 -> 1.176659221 | E38: 1.025 | F38: 12956.04172 | G38: 388.6812516 | H38: 13344.72297
A39: M2I / 2MIA | C39: 34 | D39: =F39/F32 -> 1.223729823 | E39: 1.04 | F39: 13474.33 | G39: 404.2299 | H39: 13878.5599
A40: M2II / 2MIIA | C40: 35 | D40: =F40/F32 -> 1.254321411 | E40: 1.025 | F40: 13811.17 | G40: 414.3351 | H40: 14225.5051
A41: M2III / 2MIIIA | C41: 36 | D41: =F41/F32 -> 1.285680151 | E41: 1.025 | F41: 14156.457 | G41: 424.69371 | H41: 14581.15071
A42: M2IV / 2MIVA | C42: 37 | D42: =F42/F32 -> 1.317822872 | E42: 1.025 | F42: 14510.37632 | G42: 435.3112897 | H42: 14945.68761
A43: M1I / 1MIA | C43: 38 | D43: =F43/F32 -> 1.350766107 | E43: 1.025 | F43: 14873.11 | G43: 446.1933 | H43: 15319.3033
A44: M1II / 1MIIA | B44: ESP. | C44: 39 | D44: =F44/F32 -> 1.384537573 | E44: 1.025 | F44: 15244.96323 | G44: 457.3488968 | H44: 15702.31212
A45: M1III / 1MIIIA | C45: 40 | D45: =F45/F32 -> 1.419149441 | E45: 1.025 | F45: 15626.07 | G45: 468.7821 | H45: 16094.8521
A46: M1IV / 1MIVA | C46: 41 | D46: =F46/F32 -> 1.454628176 | E46: 1.025 | F46: 16016.72175 | G46: 480.5016525 | H46: 16497.2234
A47: MEI / EMIA | C47: 42 | D47: =F47/F32 -> 1.490992991 | E47: 1.025 | F47: 16417.13 | G47: 492.5139 | H47: 16909.6439
A48: MEII / EMIIA | C48: 43 | D48: =F48/F32 -> 1.550632707 | E48: 1.04 | F48: 17073.81515 | G48: 512.2144546 | H48: 17586.02961
A49: MEIII / MEIIIA | C49: 44 | D49: =F49/F32 -> 1.589398476 | E49: 1.025 | F49: 17500.66 | G49: 525.0198 | H49: 18025.6798
A51: =A1 -> TABELA SALARIAL TCDF - VIGÊNCIA: AGOSTO/2018
A52: CARGO: | D52: AUXILIAR DE ADMINISTRAÇÃO PÚBLICA (AXAP)
A53: Aplicação: | D53: =D4 -> AGOSTO/2018 | G53: =G4 -> Lei nº 5.662/2016 | H53: =H4 -> DODF Nº 126 de 04.07.16
A54: Reajuste: | D54: =D5 -> 5% (cinco por cento) | G54: Vigência: | I54: =I5 -> 01.08.2018
A55: Padrão anterior Lei 4356/09 | B55: Classe | C55: Padrão | D55: * Interstício entre o Padrão Inicial% | E55: *Interstício | F55: Vencimento | G55: ***GACE 3% | H55: Remuneração
B56: A | C56: 8 | D56: 1 | E56: 100 | F56: 6690.327 | G56: =F56*0.03 -> 200.70981 | H56: =F56+G56 -> 6891.03681
C57: 9 | D57: =F57/F56 -> 1.025005867 | E57: 1.025 | F57: 6857.624427 | G57: =F57*0.03 -> 205.7287328 | H57: =F57+G57 -> 7063.35316
A58: 3MIB / 3AIA | C58: 10 | D58: =F58/F56 -> 1.050628174 | E58: 1.025 | F58: 7029.046037 | G58: 210.8713811 | H58: 7239.917418
A59: 3MIIB / 3AIIA | C59: 11 | D59: =F59/F56 -> 1.076895046 | E59: 1.025 | F59: 7204.78 | G59: 216.1434 | H59: 7420.9234
A60: 3MIIIB / 3AIIIA | C60: 12 | D60: =F60/F56 -> 1.103813872 | E60: 1.025 | F60: 7384.87575 | G60: 221.5462725 | H60: 7606.422022
A61: 3MIVB / 3AIVA | C61: 13 | D61: =F61/F56 -> 1.147963643 | E61: 1.04 | F61: 7680.252155 | G61: 230.4075647 | H61: 7910.65972
A62: 3VB / 3AVA | B62: B | C62: 14 | D62: =F62/F56 -> 1.17666804 | E62: 1.025 | F62: 7872.29396 | G62: 236.1688188 | H62: 8108.462778
A63: 2MIB / 2AIA | C63: 15 | D63: =F63/F56 -> 1.206084994 | E63: 1.025 | F63: 8069.103 | G63: 242.07309 | H63: 8311.17609
A64: 2MIIB / 2AIIA | C64: 16 | D64: =F64/F56 -> 1.236238453 | E64: 1.025 | F64: 8270.8395 | G64: 248.125185 | H64: 8518.964685
A65: 2MIIIB / 2AIIIA | C65: 17 | D65: =F65/F56 -> 1.267143983 | E65: 1.025 | F65: 8477.6076 | G65: 254.328228 | H65: 8731.935828
A66: 2MIVB / 2AIVA | C66: 18 | D66: =F66/F56 -> 1.298821663 | E66: 1.025 | F66: 8689.541637 | G66: 260.6862491 | H66: 8950.227887
A67: 1MIB / 1AIA | C67: 19 | D67: =F67/F56 -> 1.35077412 | E67: 1.04 | F67: 9037.120563 | G67: 271.1136169 | H67: 9308.23418
A68: 1MIIB / 1AIIA | B68: ESP. | C68: 20 | D68: =F68/F56 -> 1.384542447 | E68: 1.025 | F68: 9263.041715 | G68: 277.8912515 | H68: 9540.932967
A69: 1MIIIB / 1AIIIA | C69: 21 | D69: =F69/F56 -> 1.419154848 | E69: 1.025 | F69: 9494.61 | G69: 284.8383 | H69: 9779.4483
A70: 1MIVB / 1AIVA | C70: 22 | D70: =F70/F56 -> 1.454632487 | E70: 1.025 | F70: 9731.967 | G70: 291.95901 | H70: 10023.92601
A71: EMIB / EAIA | C71: 23 | D71: =F71/F56 -> 1.49099887 | E71: 1.025 | F71: 9975.27 | G71: 299.2581 | H71: 10274.5281
A72: EMIIB / EAIIA | C72: 24 | D72: =F72/F56 -> 1.5282754 | E72: 1.025 | F72: 10224.66217 | G72: 306.7398652 | H72: 10531.40204
A73: EMIIIB / EAIIIA | C73: 25 | D73: =F73/F56 -> 1.566485235 | E73: 1.025 | F73: 10480.29846 | G73: 314.4089538 | H73: 10794.70742
A75: =A1 -> TABELA SALARIAL TCDF - VIGÊNCIA: AGOSTO/2018
A76: CARGO: | D76: AUXILIAR DE ADMINISTRAÇÃO PÚBLICA (AXAP) - EM EXTINÇÃO
A77: Aplicação: | D77: =D4 -> AGOSTO/2018 | G77: =G4 -> Lei nº 5.662/2016 | H77: =H4 -> DODF Nº 126 de 04.07.16
A78: Reajuste: | D78: =D5 -> 5% (cinco por cento) | G78: Vigência: | I78: =I5 -> 01.08.2018
A79: Padrão anterior Lei 4356/09 | B79: Classe | C79: Padrão | D79: * Interstício entre o Padrão Inicial% | E79: *Interstício | F79: Vencimento | G79: GACE 3% | H79: Remuneração
B80: A | C80: 1 | D80: 1 | E80: 100 | F80: 5547.170254 | G80: =F80*0.03 -> 166.4151076 | H80: =F80+G80 -> 5713.585362
C81: 2 | D81: =F81/F80 -> 1.025005343 | E81: 1.025 | F81: 5685.87915 | G81: =F81*0.03 -> 170.5763745 | H81: =F81+G81 -> 5856.455525
A82: 3MIC / 3AIB | C82: 3 | D82: =F82/F80 -> 1.050622161 | E82: 1.025 | F82: 5827.98 | G82: 174.8394 | H82: 6002.8194
A83: 3MIIC / 3AIIB | C83: 4 | D83: =F83/F80 -> 1.076890712 | E83: 1.025 | F83: 5973.696122 | G83: 179.2108837 | H83: 6152.907006
A84: 3MIIIC / 3AIIIB | C84: 5 | D84: =F84/F80 -> 1.103811699 | E84: 1.025 | F84: 6123.031425 | G84: 183.6909428 | H84: 6306.722368
A85: 3MIVC / 3AIVB | C85: 6 | D85: =F85/F80 -> 1.131405692 | E85: 1.025 | F85: 6276.1 | G85: 188.283 | H85: 6464.383
A86: 3MVC / 3AVB | B86: B | C86: 7 | D86: =F86/F80 -> 1.176664804 | E86: 1.04 | F86: 6527.16 | G86: 195.8148 | H86: 6722.9748
A87: 2MIC / 2AIB | C87: 8 | D87: =F87/F80 -> 1.206079261 | E87: 1.025 | F87: 6690.327 | G87: 200.70981 | H87: 6891.03681
A88: 2MIIC / 2AIIB | C88: 9 | D88: =F88/F80 -> 1.236238318 | E88: 1.025 | F88: 6857.624427 | G88: 205.7287328 | H88: 7063.35316
A89: 2MIIIC / 2AIIIB | C89: 10 | D89: =F89/F80 -> 1.267140851 | E89: 1.025 | F89: 7029.046037 | G89: 210.8713811 | H89: 7239.917418
A90: 2MIVC / 2AIVB | C90: 11 | D90: =F90/F80 -> 1.298820781 | E90: 1.025 | F90: 7204.78 | G90: 216.1434 | H90: 7420.9234
A91: 1MIC / 1AIB | C91: 12 | D91: =F91/F80 -> 1.331287019 | E91: 1.025 | F91: 7384.87575 | G91: 221.5462725 | H91: 7606.422022
A92: 1MIIC / 1AIIB | B92: ESP. | C92: 13 | D92: =F92/F80 -> 1.384534753 | E92: 1.04 | F92: 7680.25 | G92: 230.4075 | H92: 7910.6575
A93: 1MIIIC / 1AIIIB | C93: 14 | D93: =F93/F80 -> 1.41915492 | E93: 1.025 | F93: 7872.29396 | G93: 236.1688188 | H93: 8108.462778
A94: 1MIVC / 1AIVB | C94: 15 | D94: =F94/F80 -> 1.454634098 | E94: 1.025 | F94: 8069.103 | G94: 242.07309 | H94: 8311.17609
A95: EMIC / EAIB | C95: 16 | D95: =F95/F80 -> 1.490997774 | E95: 1.025 | F95: 8270.8185 | G95: 248.124555 | H95: 8518.943055
A96: EMIIC / EAIIB | C96: 17 | D96: =F96/F80 -> 1.528276078 | E96: 1.025 | F96: 8477.6076 | G96: 254.328228 | H96: 8731.935828
A97: EMIIIC / EAIIIB | C97: 18 | D97: =F97/F80 -> 1.566481871 | E97: 1.025 | F97: 8689.541637 | G97: 260.6862491 | H97: 8950.227887
A99: =A1 -> TABELA SALARIAL TCDF - VIGÊNCIA: AGOSTO/2018
A100: CARGO: | D100: CARGOS COMISSIONADOS (Art. 11, § 2º Lei 4.356/09)
A101: Aplicação: | D101: =D77 -> AGOSTO/2018 | G101: =G4 -> Lei nº 5.662/2016 | H101: =H77 -> DODF Nº 126 de 04.07.16
A102: Reajuste: | D102: =D78 -> 5% (cinco por cento) | G102: Vigência: | I102: =I78 -> 01.08.2018
A103: NÍVEL CCG-CCA | B103: SÍMBOLO CCG-CCA | D103: % | E103: SÍMBOLO CCG-CCA | F103: TIPO DE SERVIDOR | G103: VENC. BÁSICO e OPÇÃO 55% S/VENC. | H103: REPRESENTAÇÃO MENSAL | I103: REMUNERAÇÃO MENSAL
A104: CC7-DF14 | B104: ** CNE 2 | D104: 1 | E104: CNE | F104: SEM VINC. | G104: 5708.0835 | H104: 15503.649 | I104: =G104+H104 -> 21211.7325
A105: CNE=65% | F105: EFETIVO | G105: =G104*0.55 -> 3139.445925 | I105: =G105+H104 -> 18643.09493
A106: Lei-DF | B106: *** CNE 1 | D106: =I106/I104 -> 0.8992562489 | E106: CNE | F106: SEM VINC. | G106: 5133.0405 | H106: 13941.7425 | I106: =G106+H106 -> 19074.783
A107: 5286/13 | F107: EFETIVO | G107: =G106*0.55 -> 2823.172275 | I107: =G107+H106 -> 16764.91478
A108: CC6-DF13 | B108: CC-6 | D108: =I108/I104 -> 0.7985117906 | E108: CC-6 | F108: SEM VINC. | G108: 4590.1485 | H108: 12347.67 | I108: =G108+H108 -> 16937.8185
A109: CL15=54,2% | F109: EFETIVO | G109: =G108*0.55 -> 2524.581675 | I109: =G109+H108 -> 14872.25167
A110: CC5-DF12 | B110: CC-5 | D110: =I110/I104 -> 0.6467944568 | E110: CC-5 | F110: SEM VINC. | G110: 3598.66 | H110: 10120.971 | I110: =G110+H110 -> 13719.631
A111: CL13=42,9% | F111: EFETIVO | G111: =G110*0.55 -> 1979.263 | I111: =G111+H110 -> 12100.234
A112: CC4-DF11 | B112: CC-4 | D112: =I112/I104 -> 0.5821162416 | E112: CC-4 | F112: SEM VINC. | G112: 3246.21 | H112: 9101.484 | I112: =G112+H112 -> 12347.694
A113: CL12=37,9% | F113: EFETIVO | G113: =G112*0.55 -> 1785.4155 | I113: =G113+H112 -> 10886.8995
A114: CC3-DF10 | B114: CC-3 | D114: =I114/I104 -> 0.4715120747 | E114: CC-3 | F114: SEM VINC. | G114: 2453.388 | H114: 7548.2 | I114: =G114+H114 -> 10001.588
A115: CL10=30,8% | F115: EFETIVO | G115: =G114*0.55 -> 1349.3634 | I115: =G115+H114 -> 8897.5634
A116: CC2-DF5 | B116: CC-2 | D116: =I116/I104 -> 0.4243613764 | E116: CC-2 | F116: SEM VINC. | G116: 2213.4525 | H116: 6787.9875 | I116: =G116+H116 -> 9001.44
A117: CL9=27,2% | F117: EFETIVO | G117: =G116*0.55 -> 1217.398875 | I117: =G117+H116 -> 8005.386375
A118: CC1-DF2 | B118: CC-1 | D118: =I118/I104 -> 0.3437333089 | E118: CC-1 | F118: SEM VINC. | G118: 1759.3695 | H118: 5531.8095 | I118: =G118+H118 -> 7291.179
A119: CL7=21,5% | F119: EFETIVO | G119: =G118*0.55 -> 967.653225 | I119: =G119+H118 -> 6499.462725
A120: * restabelecido o pagamento do reajuste de 11,98%, retroativamente a data da vigência da Lei nº 4.356/09 (06.07.2009).
A121: ** § 2º O Cargo em Comissão nível CC-7 da estrutura do Quadro de Pessoal dos Serviços Auxiliares do TCDF, mantidos seus atuais ocupantes, foi transformado em Cargo de Natureza Especial, com remuneração composta de vencimento e representação mensal, conforme disposto no Anexo II, item III, da Lei nº 4.356/09.
A122: *** Com o advento da Lei-DF nº 5.286/13 foi criado o cargo de CNE 1, bem como alterou o cargo CNE para CNE 2.
A123: =#REF! -> 
A125: =A1 -> TABELA SALARIAL TCDF - VIGÊNCIA: AGOSTO/2018
A126: FUNÇÕES: | D126: ENCARGOS DE GABINETE (Art. 38, § 1º)
A128: Aplicação: | D128: =D4 -> AGOSTO/2018 | G128: =G4 -> Lei nº 5.662/2016 | H128: =H4 -> DODF Nº 126 de 04.07.16
A129: Reajuste: | D129: =D102 -> 5% (cinco por cento) | G129: Vigência: | I129: 01.08.2018
A130: ENCARGO | G130: SÍMBOLO | H130: REMUNERAÇÃO
A132: ASSESSOR - EG | G132: TC - GG - AR | H132: 5031.3
A133: ASSISTENTE | G133: TC - GG - AN | H133: 3984.42
A134: AUXILIAR | G134: TC - GG - AU | H134: 3526.36
A136: FUNÇÃO | G136: SÍMBOLO | H136: REMUNERAÇÃO
A138: AUXILIAR DE GABINETE | G138: FC - 01 | H138: 2148.25
A139: ASSISTENTE ADMINISTRATIVO | G139: FC - 02 | H139: 2946.77
A140: ASSISTENTE TÉCNICO | G140: FC - 03 | H140: 4042.33
A141: SUPERVISOR | G141: FC - 04 | H141: 5013.83
A143: QUADRO DE REMUNERAÇÃO INICIAL POR CARGO EFETIVO
A144: Denominação do Cargo Efetivo | G144: Padrão | H144: Remuneração
A145: Auditor de Controle Externo | G145: =C7 -> 46 | H145: =H7 -> 18938.23172
A146: Analista de Administração Pública | G146: =G145 -> 46 | H146: =H145 -> 18938.23172
A147: Técnico de Controle Externo | G147: =C32 -> 27 | H147: =H32 -> 11341.1961
A148: Técnico de Administração Pública | G148: =G147 -> 27 | H148: =H147 -> 11341.1961
A149: Auxiliar de Administração Pública | G149: =C56 -> 8 | H149: =H56 -> 6891.03681
